bitfinex/quotes_SOLUSD_20240606
["timestamp","ask_amount","ask_price","bid_price","bid_amount"]
[1717708561692,0.8020948,170.7,170.66,35.24]
[1717708562403,0.8020948,170.7,170.67,0.37090434]
[1717708562805,0.8020948,170.7,170.67,35.61090434]
[1717708562995,0.8020948,170.7,170.68,0.39569792]
[1717708563611,0.8020948,170.7,170.67,35.24]
[1717708563790,0.8020948,170.7,170.64,35.24]
[1717708564105,0.8020948,170.7,170.66,35.24]
[1717708564910,0.8020948,170.7,170.64,35.24]
[1717708565095,0.8020948,170.7,170.66,35.24]
[1717708566216,0.8020948,170.7,170.64,35.24]
[1717708566409,0.8020948,170.7,170.66,35.24]
[1717708567390,0.8020948,170.7,170.64,35.24]
[1717708567592,0.8020948,170.7,170.66,35.24]
[1717708568600,0.8020948,170.7,170.64,35.24]
[1717708568797,0.8020948,170.7,170.66,35.24]
[1717708569315,0.8020948,170.7,170.68,51.2875]
[1717708569496,0.8020948,170.7,170.69,62.2095]
[1717708571902,6.07517476,170.77,170.72,35.24]
[1717708572106,0.1301736,170.81,170.74,35.24]
[1717708572428,0.1301736,170.81,170.76,35.24]
[1717708577726,0.1301736,170.81,170.77,22.5915]
[1717708578021,0.1301736,170.81,170.78,35.41]
[1717708578335,0.1301736,170.81,170.78,35.24]
[1717708580411,0.1301736,170.81,170.77,0.17]
[1717708580610,0.1301736,170.81,170.78,35.24]
[1717708580928,2.1665,170.78,170.73,35.13]
[1717708581109,8.6065,170.77,170.73,35.13]
[1717708581509,8.6068,170.75,170.67,35.13]
[1717708582031,6.4399,170.75,170.67,35.13]
[1717708584038,2.1672,170.73,170.68,35.13]
[1717708584236,2.1675,170.71,170.68,35.13]
[1717708584412,8.6336,170.7,170.68,35.13]
[1717708584618,45.0,170.69,170.68,35.13]
[1717708585017,45.0,170.69,170.61,35.13]
[1717708585532,45.0,170.69,170.63,35.13]
[1717708587034,6.4661,170.7,170.63,35.13]
[1717708592518,8.6336,170.7,170.61,35.13]
[1717708592712,47.1677,170.69,170.64,35.13]
[1717708593022,47.1676,170.7,170.64,35.13]
[1717708593336,12.8995,170.72,170.64,35.13]
[1717708593337,47.1674,170.71,170.64,35.13]
[1717708593536,45.0,170.71,170.64,35.13]
[1717708593848,2.1669,170.75,170.65,35.13]
[1717708594145,6.256,170.76,170.67,35.13]
[1717708594146,8.4228,170.76,170.67,35.13]
[1717708594719,4.3326,170.8,170.67,35.13]
[1717708594922,2.1667,170.77,170.69,35.13]
[1717708596022,2.1665,170.78,170.67,35.13]
[1717708596232,2.1665,170.78,170.69,35.13]
[1717708596616,47.1665,170.78,170.69,35.13]
[1717708596817,2.1666,170.77,170.69,35.13]
[1717708598026,47.1666,170.77,170.69,35.13]
[1717708598349,2.1667,170.76,170.69,35.13]
[1717708598525,2.1665,170.78,170.69,35.13]
[1717708599331,2.1664,170.79,170.69,35.13]
[1717708599662,2.1664,170.79,170.71,35.13]
[1717708600035,47.1664,170.79,170.71,35.13]
[1717708606957,2.1665,170.78,170.71,35.13]
[1717708607352,2.1669,170.75,170.72,35.13]
[1717708608245,47.1668,170.76,170.72,35.13]
[1717708608449,2.1668,170.76,170.66,35.13]
[1717708609269,2.1668,170.76,170.68,35.13]
[1717708609458,2.1669,170.75,170.68,35.13]
[1717708610645,2.1668,170.76,170.68,35.13]
[1717708612671,47.1667,170.77,170.68,35.13]
[1717708613048,2.1666,170.78,170.68,35.13]
[1717708613365,22.1664,170.79,170.7,35.13]
[1717708613756,2.1665,170.78,170.7,35.13]
[1717708615269,22.1664,170.79,170.7,35.13]
[1717708615450,45.0,170.78,170.7,35.13]
[1717708617056,47.1665,170.78,170.7,35.13]
[1717708624876,45.0,170.78,170.7,35.13]
[1717708625076,2.1665,170.78,170.7,35.13]
[1717708625280,47.1665,170.78,170.7,35.13]
[1717708625777,2.1665,170.78,170.7,35.13]
[1717708635466,47.1664,170.79,170.7,35.13]
[1717708635791,2.1665,170.78,170.7,35.13]
[1717708636088,2.1666,170.77,170.7,35.13]
[1717708636385,2.167,170.74,170.7,35.13]
[1717708636592,2.167,170.74,170.71,35.13]
[1717708637172,2.1672,170.73,170.71,35.13]
[1717708637496,2.1671,170.74,170.71,35.13]
[1717708637670,2.1671,170.74,170.66,35.13]
[1717708638096,2.1671,170.73,170.66,35.13]
[1717708638797,2.1671,170.74,170.66,35.13]
[1717708639196,2.1671,170.73,170.66,35.13]
[1717708640593,2.1671,170.74,170.66,35.13]
[1717708641981,47.1669,170.75,170.66,35.13]
[1717708642182,2.1669,170.75,170.66,35.13]
[1717708648896,67.1668,170.76,170.67,0.34]
[1717708649601,2.1666,170.78,170.68,35.13]
[1717708649794,2.1666,170.78,170.69,0.17]
[1717708650785,2.1666,170.78,170.7,35.13]
[1717708651107,20.0,170.79,170.7,35.13]
[1717708651108,2.1664,170.79,170.7,35.13]
[1717708651297,2.1664,170.79,170.72,35.13]
[1717708651486,2.1663,170.8,170.72,35.13]
[1717708652199,2.1664,170.79,170.7,35.13]
[1717708652505,2.1664,170.79,170.72,35.13]
[1717708653493,2.1664,170.79,170.7,35.13]
[1717708653811,2.1664,170.79,170.72,35.13]
[1717708655807,4.4624736,170.81,170.74,35.13]
[1717708655808,0.1301736,170.81,170.74,35.13]
[1717708656018,0.1301736,170.81,170.78,35.13]
[1717708656310,0.1301736,170.81,170.78,56.9148]
[1717708664020,0.1301736,170.81,170.78,41.1758]
[1717708666827,0.1301736,170.81,170.76,35.13]
[1717708667007,0.1301736,170.81,170.78,56.2185]
[1717708671831,0.1301736,170.81,170.8,35.13]
[1717708672732,0.1301736,170.81,170.79,35.3]
[1717708673939,0.1301736,170.81,170.8,0.17]
[1717708677952,0.1301736,170.81,170.79,35.3]
[1717708678244,0.1301736,170.81,170.79,0.17]
[1717708678445,0.1301736,170.81,170.8,35.13]
[1717708679451,0.1301736,170.81,170.79,0.17]
[1717708679652,0.1301736,170.81,170.8,35.13]
[1717708695558,0.1301736,170.81,170.77,35.13]
[1717708714978,0.1301736,170.81,170.74,35.13]
[1717708715178,0.1301736,170.81,170.76,35.13]
[1717708715381,0.1301736,170.81,170.78,35.13]
[1717708716575,0.1301736,170.81,170.76,35.13]
[1717708716782,0.1301736,170.81,170.78,35.13]
[1717708730326,0.1301736,170.81,170.78,35.13]
[1717708741407,6.426,170.8,170.79,35.13]
[1717708742207,8.5922,170.8,170.76,35.13]
[1717708742399,8.5922,170.8,170.68,35.13]
[1717708742400,6.5785,170.78,170.68,35.13]
[1717708742606,6.5785,170.78,170.68,40.99]
[1717708742815,8.7451,170.78,170.68,40.99]
[1717708743195,8.7451,170.78,170.68,35.13]
[1717708743400,8.7451,170.78,170.67,40.99]
[1717708743607,8.7451,170.78,170.68,0.34]
[1717708744330,8.7451,170.78,170.69,35.13]
[1717708744616,8.7451,170.78,170.71,35.13]
[1717708745621,8.7451,170.78,170.69,35.13]
[1717708745823,8.7451,170.78,170.71,35.13]
[1717708746507,47.1666,170.77,170.71,35.13]
[1717708746706,47.1666,170.77,170.69,35.13]
[1717708746915,47.1666,170.77,170.71,35.13]
[1717708748009,45.0,170.77,170.69,35.13]
[1717708748222,45.0,170.77,170.71,35.13]
[1717708753005,8.745,170.78,170.71,35.13]
[1717708753206,6.5785,170.78,170.71,35.13]
[1717708753534,0.1301736,170.81,170.73,35.13]
[1717708754306,0.1301736,170.81,170.75,35.13]
[1717708755426,0.1301736,170.81,170.73,35.13]
[1717708755631,0.1301736,170.81,170.75,35.13]
[1717708759537,2.2962736,170.81,170.75,35.13]
[1717708760627,0.1301736,170.81,170.75,35.13]
[1717708763834,0.1301736,170.81,170.75,42.96246444]
[1717708764539,0.1301736,170.81,170.77,35.13]
[1717708765739,0.1301736,170.81,170.76,35.13]
[1717708765937,0.1301736,170.81,170.78,35.13]
[1717708766838,0.1301736,170.81,170.76,35.13]
[1717708767018,0.1301736,170.81,170.79,35.13]
[1717708768045,0.1301736,170.81,170.76,35.13]
[1717708768237,0.1301736,170.81,170.75,8.17246444]
[1717708768238,0.1301736,170.81,170.78,35.13]
[1717708776939,0.1301736,170.81,170.8,35.13]
[1717708777144,0.1301736,170.81,170.8,175.13]
[1717708777443,0.8020948,170.87,170.8,175.13]
[1717708777444,0.8020948,170.87,170.8,196.9456666]
[1717708777618,0.8020948,170.87,170.82,35.13]
[1717708777822,0.8020948,170.87,170.84,35.13]
[1717708778845,0.8020948,170.87,170.81,35.13]
[1717708779028,0.8020948,170.87,170.83,35.13]
[1717708779239,0.8020948,170.87,170.85,35.13]
[1717708782748,0.8020948,170.87,170.81,35.13]
[1717708783825,6.204,170.85,170.81,35.13]
[1717708784030,2.1655,170.86,170.82,35.13]
[1717708784445,6.3182,170.84,170.82,35.13]
[1717708785037,6.3182,170.84,170.77,35.13]
[1717708785347,8.288,170.85,170.79,35.13]
[1717708785667,6.1224,170.82,170.79,35.13]
[1717708786153,6.1224,170.83,170.8,35.13]
[1717708786344,47.1657,170.84,170.8,35.13]
[1717708786345,51.1224,170.82,170.8,35.13]
[1717708786537,6.1224,170.82,170.8,35.13]
[1717708787355,6.1224,170.82,170.77,35.13]
[1717708787558,45.0,170.84,170.77,35.13]
[1717708787944,6.9244948,170.87,170.77,35.13]
[1717708788132,2.1655,170.86,170.79,35.13]
[1717708789252,2.1655,170.86,170.8,35.13]
[1717708789442,47.1655,170.86,170.8,35.13]
[1717708790368,47.1655,170.86,170.77,35.13]
[1717708790553,2.1656,170.85,170.79,35.13]
[1717708790761,6.5879,170.83,170.79,35.13]
[1717708791141,8.7538,170.83,170.79,35.13]
[1717708791443,6.5879,170.83,170.73,35.13]
[1717708791635,6.5879,170.83,170.74,0.34]
[1717708792848,8.7537,170.83,170.74,0.34]
[1717708793156,45.0,170.82,170.73,62.96246444]
[1717708793533,6.5879,170.83,170.75,35.13]
[1717708793747,6.5879,170.83,170.77,35.13]
[1717708796758,53.5496,170.82,170.77,35.13]
[1717708797058,8.5496,170.82,170.77,35.13]
[1717708797561,8.5496,170.82,170.71,35.13]
[1717708797876,2.1661,170.81,170.72,0.17]
[1717708798043,2.1661,170.81,170.73,35.13]
[1717708798938,6.3836,170.82,170.73,35.13]
[1717708799138,6.3836,170.82,170.75,35.13]
[1717708799338,2.1657,170.84,170.75,35.13]
[1717708799540,2.1657,170.84,170.77,35.13]
[1717708800565,2.1657,170.84,170.74,20.0]
[1717708800566,2.1658,170.83,170.78,35.13]
[1717708800763,8.3499,170.83,170.78,35.13]
[1717708801662,8.3499,170.83,170.79,35.13]
[1717708802668,8.3499,170.83,170.75,35.13]
[1717708802867,6.1841,170.83,170.75,35.13]
[1717708804944,2.1655,170.86,170.76,0.17]
[1717708805145,2.1655,170.86,170.76,0.34]
[1717708805443,0.8020948,170.87,170.76,0.34]
[1717708805649,2.1655,170.86,170.77,35.13]
[1717708805861,2.1656,170.85,170.77,35.13]
[1717708806168,47.1656,170.85,170.79,35.13]
[1717708808845,45.0,170.85,170.79,35.13]
[1717708809346,47.1656,170.85,170.79,35.13]
[1717708809662,2.1657,170.84,170.79,35.13]
[1717708809844,45.0,170.84,170.79,35.13]
[1717708810262,47.1657,170.85,170.79,35.13]
[1717708810975,45.0,170.85,170.79,35.13]
[1717708815474,47.1656,170.85,170.79,35.13]
[1717708816350,45.0,170.85,170.79,35.13]
[1717708821371,47.1656,170.85,170.79,35.13]
[1717708821573,45.0,170.85,170.79,35.13]
[1717708822782,47.1656,170.85,170.79,35.13]
[1717708823386,45.0,170.86,170.79,35.13]
[1717708823865,2.1656,170.85,170.79,35.13]
[1717708824060,47.1655,170.86,170.79,35.13]
[1717708824775,47.9674948,170.87,170.79,35.13]
[1717708824977,2.9674948,170.87,170.79,35.13]
[1717708825172,47.1655,170.86,170.79,35.13]
[1717708825484,2.1655,170.86,170.79,35.13]
[1717708825687,45.0,170.85,170.79,35.13]
[1717708825983,2.1655,170.86,170.79,35.13]
[1717708830189,0.8020948,170.87,170.79,35.13]
[1717708830355,4.332,170.83,170.76,35.13]
[1717708830557,45.0,170.82,170.77,55.13]
[1717708831069,0.34,170.86,170.77,55.13]
[1717708831268,2.1657,170.85,170.77,55.13]
[1717708831469,2.1658,170.84,170.77,55.13]
[1717708831781,2.1658,170.84,170.77,35.13]
[1717708832382,2.1659,170.83,170.77,35.13]
[1717708832772,2.1659,170.83,170.75,35.13]
[1717708832974,2.1658,170.84,170.77,35.13]
[1717708833373,45.17,170.86,170.77,35.13]
[1717708833576,0.17,170.85,170.77,35.13]
[1717708833882,2.3357,170.85,170.78,35.13]
[1717708834087,22.1655,170.86,170.78,35.13]
[1717708834265,2.1655,170.86,170.78,35.13]
[1717708834459,2.1656,170.85,170.78,35.13]
[1717708834770,0.8020948,170.87,170.78,35.13]
[1717708834965,0.34,170.86,170.75,35.13]
[1717708835197,2.1657,170.85,170.75,35.13]
[1717708835677,22.1657,170.85,170.75,35.13]
[1717708835985,45.0,170.84,170.75,35.13]
[1717708836377,47.1657,170.84,170.75,35.13]
[1717708836885,2.1659,170.83,170.75,35.13]
[1717708839681,47.1658,170.84,170.75,35.13]
[1717708839991,2.1659,170.83,170.75,35.13]
[1717708842477,47.1658,170.84,170.75,35.13]
[1717708845389,2.1659,170.83,170.75,35.13]
[1717708849502,2.166,170.82,170.75,35.13]
[1717708850604,2.1659,170.83,170.75,35.13]
[1717708858403,2.1661,170.82,170.75,35.13]
[1717708858914,47.1661,170.82,170.75,35.13]
[1717708861212,45.0,170.81,170.75,35.13]
[1717708861411,2.1661,170.82,170.75,35.13]
[1717708862822,45.0,170.83,170.75,35.13]
[1717708863033,2.1659,170.83,170.75,35.13]
[1717708863326,22.1659,170.83,170.75,35.13]
[1717708863622,45.0,170.82,170.75,35.13]
[1717708864625,47.166,170.82,170.75,35.13]
[1717708873230,45.0,170.82,170.75,35.13]
[1717708873836,47.166,170.82,170.75,35.13]
[1717708875924,45.0,170.82,170.75,35.13]
[1717708876328,47.166,170.82,170.75,35.13]
[1717708879127,45.0,170.82,170.75,35.13]
[1717708879326,47.166,170.82,170.75,35.13]
[1717708889246,45.0,170.82,170.75,35.13]
[1717708889644,47.166,170.82,170.75,35.13]
[1717708897743,45.0,170.82,170.75,35.13]
[1717708898538,47.166,170.82,170.75,35.13]
[1717708908334,47.166,170.82,170.74,22.3894]
[1717708908535,4.3325,170.8,170.74,41.6615]
[1717708908836,2.1665,170.78,170.74,41.6615]
[1717708909550,2.1665,170.78,170.71,35.14]
[1717708911646,47.1664,170.79,170.71,35.14]
[1717708912040,2.1665,170.78,170.71,35.14]
[1717708914563,47.1664,170.79,170.71,35.14]
[1717708915360,45.0,170.79,170.71,35.14]
[1717708916862,2.1665,170.78,170.71,35.14]
[1717708917558,47.1664,170.79,170.71,35.14]
[1717708917766,2.1665,170.78,170.71,35.14]
[1717708922052,47.1664,170.79,170.71,35.14]
[1717708926176,2.1664,170.79,170.71,35.14]
[1717708935101,2.1665,170.78,170.71,35.14]
[1717708935279,51.10546872,170.8,170.71,35.14]
[1717708935477,2.3364,170.79,170.71,35.14]
[1717708936193,2.1665,170.78,170.71,35.14]
[1717708936398,47.1665,170.78,170.71,35.14]
[1717708936598,45.0,170.77,170.71,35.14]
[1717708936786,2.1665,170.78,170.71,35.14]
[1717708937282,47.1665,170.78,170.71,35.14]
[1717708952111,2.1666,170.77,170.71,35.14]
[1717708952406,47.1666,170.77,170.71,35.14]
[1717708952593,2.1668,170.76,170.71,35.14]
[1717708952794,45.0,170.76,170.71,41.3142]
[1717708953193,47.1667,170.77,170.71,41.3142]
[1717708953905,2.1667,170.76,170.71,41.3142]
[1717708954086,47.1667,170.76,170.71,41.3142]
[1717708954486,2.1667,170.76,170.71,41.3142]
[1717708954710,45.0,170.75,170.71,41.3142]
[1717708954902,2.1667,170.76,170.71,41.3142]
[1717708956687,47.1667,170.77,170.71,41.3142]
[1717708958618,45.0,170.76,170.71,41.3142]
[1717708958822,2.1667,170.77,170.71,41.3142]
[1717708961505,2.1667,170.77,170.71,41.3142]
[1717708962211,2.1667,170.76,170.71,41.3142]
[1717708962426,2.1668,170.76,170.71,41.3142]
[1717708963506,2.1667,170.77,170.71,41.3142]
[1717708966429,2.1668,170.76,170.71,41.3142]
[1717708967322,49.333,170.78,170.71,41.3142]
[1717708967623,2.1667,170.77,170.71,41.3142]
[1717708971034,2.1669,170.75,170.71,41.3142]
[1717708971330,47.1668,170.76,170.71,41.3142]
[1717708971905,2.1669,170.75,170.7,15.4207]
[1717708973939,4.3338,170.75,170.7,15.4207]
[1717708974123,47.167,170.74,170.7,15.4207]
[1717708974726,45.0,170.73,170.7,15.4207]
[1717708974902,47.1669,170.75,170.7,15.4207]
[1717708975328,2.167,170.74,170.7,15.4207]
[1717708975528,2.167,170.74,170.68,35.14]
[1717708979237,53.8379,170.75,170.68,35.14]
[1717708979406,2.1673,170.72,170.67,6.2635]
[1717708979926,2.1673,170.72,170.66,50.3295]
[1717708980118,45.17,170.73,170.66,50.3295]
[1717708980319,2.1675,170.71,170.66,50.3295]
[1717708980915,47.1675,170.71,170.66,50.3295]
[1717708981634,2.1675,170.7,170.64,35.14]
[1717708981816,45.0,170.7,170.64,35.14]
[1717708982224,47.1674,170.71,170.64,35.14]
[1717708982842,2.1676,170.7,170.64,35.14]
[1717708983134,47.1676,170.7,170.64,35.14]
[1717708983518,45.0,170.69,170.64,35.14]
[1717708983742,2.1676,170.7,170.62,57.0172]
[1717708984607,47.1674,170.71,170.62,57.0172]
[1717708987941,2.1675,170.7,170.62,57.0172]
[1717708988738,47.1675,170.71,170.62,57.0172]
[1717708999351,2.1675,170.7,170.62,57.0172]
[1717708999559,45.0,170.71,170.62,57.0172]
[1717708999729,2.1675,170.7,170.62,57.0172]
[1717709001653,2.1676,170.69,170.62,57.0172]
[1717709001848,45.0,170.71,170.62,57.0172]
[1717709002151,2.1676,170.7,170.62,57.0172]
[1717709002757,2.1676,170.69,170.62,57.0172]
[1717709005937,2.1676,170.7,170.62,57.0172]
[1717709008163,2.1677,170.69,170.62,57.0172]
[1717709008455,2.1676,170.7,170.62,57.0172]
[1717709008650,2.1676,170.69,170.62,57.0172]
[1717709009041,2.1676,170.7,170.62,57.0172]
[1717709011871,2.1676,170.7,170.62,57.0172]
[1717709012058,2.1677,170.69,170.62,57.0172]
[1717709012561,47.1677,170.69,170.62,57.0172]
[1717709015153,2.1678,170.68,170.62,57.0172]
[1717709015356,45.0,170.68,170.62,57.0172]
[1717709015768,47.1677,170.69,170.62,57.0172]
[1717709016867,2.1679,170.67,170.62,21.8772]
[1717709017066,2.1679,170.67,170.62,21.9115]
[1717709022850,2.168,170.66,170.62,21.9115]
[1717709023170,2.168,170.67,170.62,21.9115]
[1717709024676,2.168,170.67,170.63,15.045]
[1717709024862,2.168,170.67,170.64,6.6445]
[1717709027676,2.168,170.67,170.63,15.045]
[1717709028677,2.168,170.67,170.6,57.4538]
[1717709031791,2.168,170.66,170.6,57.4538]
[1717709040385,2.168,170.67,170.6,57.4538]
[1717709043378,2.1679,170.67,170.6,57.4538]
[1717709043792,22.1678,170.68,170.6,57.4538]
[1717709044895,2.1679,170.67,170.6,57.4538]
[1717709045092,47.1679,170.67,170.6,57.4538]
[1717709048073,45.0,170.67,170.6,57.4538]
[1717709048675,45.0,170.67,170.61,0.99140607]
[1717709049774,2.1681,170.66,170.6,57.4538]
[1717709049975,47.1681,170.66,170.6,57.4538]
[1717709050389,2.1681,170.66,170.6,57.4538]
[1717709052796,47.168,170.67,170.6,57.4538]
[1717709055494,2.168,170.66,170.6,57.4538]
[1717709059201,47.1679,170.67,170.6,57.4538]
[1717709063713,2.168,170.66,170.6,57.4538]
[1717709063901,47.1679,170.67,170.6,57.4538]
[1717709066517,2.1681,170.66,170.6,57.4538]
[1717709075699,47.168,170.67,170.6,57.4538]
[1717709082614,45.0,170.67,170.6,57.4538]
[1717709084202,47.1679,170.67,170.6,57.4538]
[1717709084425,45.0,170.67,170.6,57.4538]
[1717709085034,47.1679,170.67,170.6,57.4538]
[1717709085405,45.0,170.67,170.6,57.4538]
[1717709085626,47.1679,170.67,170.6,57.4538]
[1717709088231,47.168,170.67,170.6,57.4538]
[1717709097444,2.168,170.66,170.6,57.4538]
[1717709101347,47.168,170.67,170.6,57.4538]
[1717709101647,2.168,170.66,170.6,57.4538]
[1717709102643,47.168,170.67,170.6,57.4538]
[1717709102848,2.1681,170.66,170.6,57.4538]
[1717709103960,47.1679,170.67,170.6,57.4538]
[1717709105363,45.0,170.67,170.6,57.4538]
[1717709106856,47.1679,170.67,170.6,57.4538]
[1717709111561,2.1679,170.67,170.6,57.4538]
[1717709112761,2.1681,170.66,170.6,57.4538]
[1717709113961,2.168,170.67,170.6,57.4538]
[1717709117991,2.168,170.66,170.6,57.4538]
[1717709119890,2.168,170.67,170.6,57.4538]
[1717709129596,47.1678,170.68,170.6,57.4538]
[1717709130976,2.1679,170.67,170.6,57.4538]
[1717709150324,47.1678,170.68,170.6,57.4538]
[1717709151325,2.1679,170.67,170.6,57.4538]
[1717709154130,47.1678,170.68,170.6,57.4538]
[1717709155127,2.1679,170.67,170.6,57.4538]
[1717709162233,2.168,170.66,170.6,57.4538]
[1717709166034,2.1679,170.67,170.6,57.4538]
[1717709174018,2.1681,170.66,170.6,57.4538]
[1717709174517,47.1681,170.66,170.6,57.4538]
[1717709180011,47.1681,170.66,170.59,35.14]
[1717709180012,49.3361,170.66,170.59,35.14]
[1717709180216,2.1682,170.65,170.59,35.14]
[1717709180419,47.1682,170.65,170.59,35.14]
[1717709180839,2.1683,170.64,170.59,35.14]
[1717709181145,2.1683,170.64,170.59,57.3062]
[1717709184538,2.1682,170.65,170.59,57.3062]
[1717709188340,2.1682,170.65,170.59,41.6492]
[1717709188655,2.1683,170.64,170.59,41.6492]
[1717709189148,2.1682,170.65,170.59,41.6492]
[1717709189649,2.1683,170.64,170.59,41.6492]
[1717709189837,2.1682,170.65,170.59,41.6492]
[1717709190146,2.1683,170.64,170.59,41.6492]
[1717709190350,45.0,170.66,170.56,35.17]
[1717709190351,15.1793,170.63,170.56,35.17]
[1717709190543,45.0,170.62,170.56,35.17]
[1717709190741,2.1687,170.61,170.56,35.17]
[1717709191051,47.1686,170.62,170.56,35.17]
[1717709191252,2.1686,170.62,170.56,35.17]
[1717709193135,2.1687,170.61,170.56,35.17]
[1717709193354,2.1687,170.61,170.54,22.7071]
[1717709193555,47.1687,170.61,170.54,22.7071]
[1717709197160,19.6894,170.6,170.51,35.17]
[1717709197361,2.1691,170.58,170.51,35.17]
[1717709198239,45.0,170.59,170.51,35.17]
[1717709198464,2.1691,170.58,170.51,35.17]
[1717709199538,2.1693,170.56,170.51,35.17]
[1717709199954,47.5092,170.57,170.51,35.17]
[1717709200646,2.1693,170.56,170.49,35.17]
[1717709201849,43.0920982,170.57,170.49,35.17]
[1717709202238,2.1693,170.56,170.49,35.17]
[1717709203362,2.1693,170.56,170.53,2.1696]
[1717709204943,49.5787982,170.57,170.53,2.1696]
[1717709205141,49.5787982,170.57,170.52,2.1697]
[1717709205363,2.1694,170.56,170.52,2.1697]
[1717709205569,2.1694,170.55,170.52,2.1697]
[1717709206438,2.1695,170.54,170.51,2.1698]
[1717709206638,66.51912372,170.57,170.51,2.1698]
[1717709206857,2.1695,170.54,170.51,2.1698]
[1717709208246,47.1695,170.55,170.51,2.1698]
[1717709208546,2.1696,170.54,170.51,2.1698]
[1717709208764,2.1696,170.54,170.5,2.17]
[1717709210650,2.1696,170.54,170.51,2.1699]
[1717709211044,2.1697,170.53,170.5,2.17]
[1717709211456,47.1697,170.53,170.5,2.17]
[1717709218455,45.0,170.53,170.52,2.1698]
[1717709218655,45.0,170.53,170.51,2.1698]
[1717709219577,45.0,170.53,170.5,2.17]
[1717709220271,47.1697,170.53,170.5,2.17]
[1717709220448,45.0,170.53,170.5,2.17]
[1717709220849,47.1697,170.53,170.5,2.17]
[1717709224357,47.1697,170.53,170.49,2.1701]
[1717709224653,2.1697,170.53,170.49,2.1701]
[1717709225058,2.1697,170.53,170.5,2.17]
[1717709225376,2.1698,170.52,170.45,42.26093395]
[1717709226363,2.1698,170.52,170.49,2.1701]
[1717709240887,2.1698,170.52,170.49,2.1701]
[1717709243491,2.17,170.5,170.47,2.1703]
[1717709243674,6.5914,170.52,170.46,2.1705]
[1717709243675,2.1702,170.49,170.46,2.1705]
[1717709244390,47.1701,170.5,170.46,2.1705]
[1717709249079,2.1701,170.5,170.46,2.1705]
[1717709251795,47.1701,170.5,170.46,2.1705]
[1717709252018,45.0,170.5,170.46,2.1705]
[1717709252291,2.1702,170.49,170.46,2.1705]
[1717709258603,47.1702,170.49,170.46,2.1705]
[1717709259079,2.1702,170.49,170.46,2.1705]
[1717709261198,2.1702,170.49,170.45,2.1706]
[1717709261591,2.1702,170.49,170.46,2.1705]
[1717709269591,2.1703,170.48,170.45,2.1706]
[1717709274524,8.5524,170.48,170.45,2.1706]
[1717709278294,6.3821,170.48,170.46,2.1705]
[1717709280908,8.5524,170.48,170.45,2.1706]
[1717709281801,6.3821,170.48,170.46,2.1705]
[1717709282297,8.5524,170.48,170.45,2.1706]
[1717709282793,8.5524,170.48,170.46,2.1705]
[1717709283002,8.5524,170.48,170.45,2.1706]